bitfinex/quotes_ETHUSD_20251025
["timestamp","ask_amount","ask_price","bid_price","bid_amount"]
[1761405264102,3.00061725,3931.1,3931.0,3.199]
[1761405266300,5.10165087,3931.1,3931.0,3.199]
[1761405266672,5.10165087,3931.1,3931.0,0.002]
[1761405266873,6.01083921,3931.1,3931.0,0.002]
[1761405276298,6.13803921,3931.1,3931.0,0.002]
[1761405280932,6.90173125,3931.1,3931.0,0.002]
[1761405290311,5.68223921,3931.1,3931.0,0.002]
[1761405292952,6.12433921,3931.1,3931.0,0.002]
[1761405300468,5.68223921,3931.1,3931.0,0.002]
[1761405300626,4.77305087,3931.1,3931.0,0.002]
[1761405302661,5.21295087,3931.1,3931.0,0.002]
[1761405302853,4.77305087,3931.1,3931.0,0.002]
[1761405303329,5.21295087,3931.1,3931.0,0.002]
[1761405303529,4.77305087,3931.1,3931.0,0.002]
[1761405307068,5.21295087,3931.1,3931.0,0.002]
[1761405307633,4.77305087,3931.1,3931.0,0.002]
[1761405308043,4.64585087,3931.1,3931.0,0.002]
[1761405310071,2.10203362,3931.1,3931.0,0.002]
[1761405310232,4.64585087,3931.1,3931.0,0.002]
[1761405310658,5.09665087,3931.1,3931.0,0.002]
[1761405310831,4.64585087,3931.1,3931.0,0.002]
[1761405319385,0.54683362,3931.1,3931.0,0.002]
[1761405319557,0.001,3931.1,3931.0,0.002]
[1761405319958,2.54481725,3931.1,3931.0,0.002]
[1761405321670,2.99561725,3931.1,3931.0,0.002]
[1761405322575,2.54481725,3931.1,3931.0,0.002]
[1761405330291,0.001,3931.1,3931.0,0.002]
[1761405330980,0.001,3931.1,3931.0,0.4116]
[1761405331155,0.001,3931.1,3931.0,1.17512877]
[1761405332081,0.001,3931.1,3931.0,0.89272877]
[1761405336158,0.001,3931.1,3931.0,1.17512877]
[1761405336380,0.001,3931.1,3931.0,1.54703698]
[1761405336587,0.001,3931.1,3931.0,1.26463698]
[1761405336786,0.001,3931.1,3931.0,4.74203698]
[1761405337254,0.001,3931.1,3931.0,4.45963698]
[1761405342729,2.54481725,3931.1,3931.0,4.45963698]
[1761405342896,2.54481725,3931.1,3931.0,4.08772877]
[1761405346020,0.001,3931.1,3931.0,4.08772877]
[1761405347831,0.001,3931.1,3931.0,0.89272877]
[1761405348136,0.001,3931.1,3931.0,4.08772877]
[1761405358244,2.97991725,3931.1,3931.0,4.08772877]
[1761405358449,2.97991725,3931.1,3931.0,0.1292]
[1761405358651,3.53227778,3931.1,3931.0,3.197]
[1761405358966,2.97991725,3931.1,3931.0,3.197]
[1761405360322,3.10711725,3931.1,3931.0,3.197]
[1761405360520,3.653789,3931.1,3931.0,3.197]
[1761405360939,3.218689,3931.1,3931.0,3.197]
[1761405361139,3.651189,3931.1,3931.0,3.197]
[1761405361342,3.651189,3931.1,3931.0,0.002]
[1761405361343,5.89416587,3931.1,3931.0,0.002]
[1761405366673,6.65783652,3931.1,3931.0,0.002]
[1761405372567,6.22533652,3931.1,3931.0,0.002]
[1761405373593,1.4385424,3931.1,3931.0,0.002]
[1761405373795,0.001,3931.1,3931.0,0.002]
[1761405374747,0.001,3931.1,3931.0,0.4116]
[1761405374943,0.001,3931.1,3931.0,2.67308196]
[1761405375148,0.001,3931.1,3931.0,0.2844]
[1761405375367,0.001,3931.1,3931.0,1.21748769]
[1761405375574,0.001,3931.1,3931.0,1.34468769]
[1761405375972,0.001,3931.1,3931.0,3.88856965]
[1761405383354,0.001,3931.1,3931.0,7.08256965]
[1761405385070,0.001,3931.1,3931.0,7.20976965]
[1761405386099,0.001,3931.1,3931.0,9.27184965]
[1761405389598,0.001,3931.1,3931.0,9.67275137]
[1761405390806,0.001,3931.1,3931.0,9.98175858]
[1761405396898,0.001,3931.1,3931.0,9.58085686]
[1761405397090,0.001,3931.1,3931.0,9.27184965]
[1761405399101,0.001,3931.1,3931.0,8.98944965]
[1761405400496,0.001,3931.1,3931.0,9.27184965]
[1761405406825,0.001,3931.1,3931.0,9.45365686]
[1761405407126,0.001,3931.1,3931.0,9.58085686]
[1761405409105,0.001,3931.1,3931.0,9.98175858]
[1761405412315,0.001,3931.1,3931.0,13.82175858]
[1761405415969,0.001,3931.1,3931.0,13.42085686]
[1761405418849,0.001,3931.1,3931.0,13.11184965]
[1761405420849,0.001,3931.1,3931.0,16.17374617]
[1761405423683,0.001,3931.1,3931.0,15.89134617]
[1761405424137,0.001,3931.1,3931.0,12.05134617]
[1761405424770,0.001,3931.1,3931.0,12.33374617]
[1761405426943,0.001,3931.1,3931.0,14.24074617]
[1761405435373,0.001,3931.1,3931.0,14.9506551]
[1761405439884,0.001,3931.1,3931.0,13.95834617]
[1761405441726,0.001,3931.1,3931.0,14.24074617]
[1761405442902,0.001,3931.1,3931.0,14.9506551]
[1761405448004,0.001,3931.1,3931.0,18.7906551]
[1761405449181,0.001,3931.1,3931.0,18.5082551]
[1761405451007,0.001,3931.1,3931.0,18.10735338]
[1761405453803,0.001,3931.1,3931.0,14.26735338]
[1761405456335,0.001,3931.1,3931.0,13.95834617]
[1761405457803,0.4474,3931.1,3931.0,13.95834617]
[1761405459839,0.4474,3931.1,3931.0,17.79834617]
[1761405461513,0.001,3931.1,3931.0,17.79834617]
[1761405461711,0.4347,3931.1,3931.0,17.79834617]
[1761405466427,0.4347,3931.1,3931.0,17.29146617]
[1761405466939,0.4347,3931.1,3931.0,17.79834617]
[1761405469918,0.4347,3931.1,3931.0,16.73805848]
[1761405471453,0.4347,3931.1,3931.0,13.67616196]
[1761405471777,0.4347,3931.1,3931.0,7.77408196]
[1761405472055,0.4347,3931.1,3931.0,9.32928196]
[1761405473919,0.4347,3931.1,3931.0,5.2302]
[1761405474114,0.4347,3931.1,3931.0,5.103]
[1761405475421,0.4347,3931.1,3931.0,7.64688196]
[1761405484091,0.4347,3931.1,3931.0,7.77408196]
[1761405487891,0.4417,3931.1,3931.0,7.77408196]
[1761405500642,0.4417,3931.1,3931.0,5.86708196]
[1761405501735,0.001,3931.1,3931.0,6.7081889]
[1761405502549,0.4436,3931.1,3931.0,6.7081889]
[1761405505222,0.001,3931.1,3931.0,6.7081889]
[1761405505629,0.4436,3931.1,3931.0,6.7081889]
[1761405505835,0.001,3931.1,3931.0,6.7081889]
[1761405512661,0.001,3931.1,3931.0,7.2150689]
[1761405513695,0.001,3931.1,3931.0,7.31684735]
[1761405514792,0.001,3931.1,3931.0,8.87204735]
[1761405522999,0.001,3931.1,3931.0,9.15444735]
[1761405525325,0.001,3931.1,3931.0,8.87204735]
[1761405530582,0.4363,3931.1,3931.0,8.87204735]
[1761405530788,0.001,3931.1,3931.0,8.87204735]
[1761405531020,0.4363,3931.1,3931.0,8.87204735]
[1761405534093,0.001,3931.1,3931.0,8.87204735]
[1761405537224,0.4363,3931.1,3931.0,8.87204735]
[1761405540122,0.001,3931.1,3931.0,8.87204735]
[1761405540425,0.4663,3931.1,3931.0,8.87204735]
[1761405544039,0.001,3931.1,3931.0,8.87204735]
[1761405544812,0.001,3931.1,3931.0,11.93500198]
[1761405545236,0.4663,3931.1,3931.0,11.93500198]
[1761405546127,0.4663,3931.1,3931.0,2.54588196]
[1761405546328,0.4663,3931.1,3931.0,3.193]
[1761405547207,0.4663,3931.1,3931.0,5.73688196]
[1761405547945,0.4663,3931.1,3931.0,3.193]
[1761405548409,0.4663,3931.1,3931.0,5.73688196]
[1761405555455,0.001,3931.1,3931.0,5.73688196]
[1761405555622,0.4598,3931.1,3931.0,5.73688196]
[1761405556336,0.001,3931.1,3931.0,8.92703659]
[1761405556533,0.4598,3931.1,3931.0,8.92703659]
[1761405556965,0.001,3931.1,3931.0,8.92703659]
[1761405557175,0.4598,3931.1,3931.0,8.92703659]
[1761405557837,0.001,3931.1,3931.0,8.92703659]
[1761405558575,0.4598,3931.1,3931.0,8.92703659]
[1761405559868,0.001,3931.1,3931.0,9.43391659]
[1761405560073,0.001,3931.1,3931.0,10.82240746]
[1761405561676,0.001,3931.1,3931.0,12.37760746]
[1761405564277,0.001,3931.1,3931.0,6.12365283]
[1761405564444,0.001,3931.1,3931.0,9.31465283]
[1761405564780,0.4598,3931.1,3931.0,9.31465283]
[1761405569689,0.001,3931.1,3931.0,9.31465283]
[1761405576373,0.4598,3931.1,3931.0,9.31465283]
[1761405577094,0.001,3931.1,3931.0,9.31465283]
[1761405579285,0.4308,3931.1,3931.0,9.31465283]
[1761405581808,0.4308,3931.1,3931.0,9.74545283]
[1761405582508,0.001,3931.1,3931.0,9.74545283]
[1761405591078,0.4308,3931.1,3931.0,9.74545283]
[1761405596628,0.001,3931.1,3931.0,9.74545283]
[1761405597331,0.4308,3931.1,3931.0,9.74545283]
[1761405601210,0.4308,3931.1,3931.0,7.85008196]
[1761405601412,0.4308,3931.1,3931.0,0.002]
[1761405601609,0.4308,3931.1,3931.0,3.193]
[1761405602435,0.4308,3931.1,3931.0,5.73688196]
[1761405610437,0.4626,3931.1,3931.0,5.73688196]
[1761405611450,0.4626,3931.1,3931.0,5.86408196]
[1761405614135,0.001,3931.1,3931.0,5.86408196]
[1761405614574,0.4626,3931.1,3931.0,5.86408196]
[1761405617416,0.4626,3931.1,3931.0,3.3202]
[1761405618048,0.4626,3931.1,3931.0,5.86408196]
[1761405627848,0.4626,3931.1,3931.0,3.3202]
[1761405630140,0.4626,3931.1,3931.0,3.193]
[1761405638346,0.7759431,3931.1,3931.0,3.193]
[1761405640276,0.4626,3931.1,3931.0,3.193]
[1761405653348,0.001,3931.1,3931.0,3.193]
[1761405654150,0.474,3931.1,3931.0,3.193]
[1761405664683,0.474,3931.1,3931.0,0.002]
[1761405664684,3.01781725,3931.1,3931.0,0.002]
[1761405664983,3.14501725,3931.1,3931.0,3.192]
[1761405665166,3.71388857,3931.1,3931.0,3.192]
[1761405677065,3.71388857,3931.1,3931.0,0.002]
[1761405677283,4.25962076,3931.1,3931.0,0.002]
[1761405686951,5.81482076,3931.1,3931.0,0.002]
[1761405699565,0.54673219,3931.1,3931.0,0.002]
[1761405699763,0.001,3931.1,3931.0,0.2844]
[1761405700059,0.001,3931.1,3931.0,1.04793849]
[1761405702674,0.001,3931.1,3931.0,0.76553849]
[1761405704645,0.001,3931.1,3931.0,1.04793849]
[1761405706288,0.001,3931.1,3931.0,1.51057934]
[1761405713772,2.54481725,3931.1,3931.0,1.51057934]
[1761405714092,2.54481725,3931.1,3931.0,1.22817934]
[1761405718499,2.54481725,3931.1,3931.0,0.76553849]
[1761405719461,3.00651725,3931.1,3931.0,0.76553849]
[1761405719979,2.54481725,3931.1,3931.0,0.76553849]
[1761405720873,0.001,3931.1,3931.0,0.76553849]
[1761405740635,2.54481725,3931.1,3931.0,0.76553849]
[1761405740797,0.001,3931.1,3931.0,0.76553849]
[1761405742736,0.001,3931.1,3931.0,1.04793849]
[1761405743231,0.001,3931.1,3931.0,0.76553849]
[1761405751742,2.54481725,3931.1,3931.0,0.76553849]
[1761405751941,3.55402038,3931.1,3931.0,0.76553849]
[1761405754723,2.98811725,3931.1,3931.0,0.76553849]
[1761405758953,2.97601725,3931.1,3931.0,3.191]
[1761405760955,0.001,3931.1,3931.0,3.191]
[1761405761562,2.54481725,3931.1,3931.0,3.191]
[1761405762784,2.54481725,3931.1,3931.0,3.95456764]
[1761405763275,0.001,3931.1,3931.0,3.95456764]
[1761405764648,2.54481725,3931.1,3931.0,3.95456764]
[1761405768259,2.97601725,3931.1,3931.0,3.95456764]
[1761405768594,3.54070794,3931.1,3931.0,3.95456764]
[1761405769470,2.54481725,3931.1,3931.0,3.95456764]
[1761405770799,2.97601725,3931.1,3931.0,3.95456764]
[1761405772269,2.54481725,3931.1,3931.0,3.95456764]
[1761405790329,2.99401725,3931.1,3931.0,3.95456764]
[1761405797661,0.001,3931.1,3931.0,3.95456764]
[1761405799722,2.54481725,3931.1,3931.0,3.95456764]
[1761405803334,0.001,3931.1,3931.0,3.95456764]
[1761405810072,2.54481725,3931.1,3931.0,3.95456764]
[1761405813148,2.99401725,3931.1,3931.0,3.95456764]
[1761405813555,2.54481725,3931.1,3931.0,3.95456764]
[1761405819075,0.001,3931.1,3931.0,3.95456764]
[1761405820759,2.54481725,3931.1,3931.0,3.95456764]
[1761405821682,0.001,3931.1,3931.0,3.95456764]
[1761405826005,0.001,3931.1,3931.0,3.98256764]
[1761405829794,2.54481725,3931.1,3931.0,3.98256764]
[1761405830111,2.97921725,3931.1,3931.0,3.98256764]
[1761405833682,0.001,3931.1,3931.0,3.98256764]
[1761405833878,2.54481725,3931.1,3931.0,3.98256764]
[1761405835083,2.97921725,3931.1,3931.0,3.98256764]
[1761405835497,0.4354,3931.1,3931.0,3.98256764]
[1761405835717,2.97921725,3931.1,3931.0,3.98256764]
[1761405836585,2.54481725,3931.1,3931.0,3.98256764]
[1761405836799,0.001,3931.1,3931.0,3.98256764]
[1761405841833,0.001,3931.1,3931.0,7.34702636]
[1761405842820,0.001,3931.1,3931.0,7.85390636]
[1761405849325,0.001,3931.1,3931.0,4.38250636]
[1761405849502,0.001,3931.1,3931.0,7.56950636]
[1761405851602,0.001,3931.1,3931.0,7.82390636]
[1761405851807,0.001,3931.1,3931.0,7.56950636]
[1761405868262,0.001,3931.1,3931.0,7.85190636]
[1761405868973,0.001,3931.1,3931.0,7.56950636]
[1761405873363,0.001,3931.1,3931.0,7.85190636]
[1761405873566,0.001,3931.1,3931.0,7.56950636]
[1761405894716,0.4572,3931.1,3931.0,0.92076764]
[1761405895011,0.4572,3931.1,3931.0,4.10676764]
[1761405896115,0.4572,3931.1,3931.0,6.6506496]
[1761405896519,0.001,3931.1,3931.0,6.6506496]
[1761405897223,0.4572,3931.1,3931.0,6.6506496]
[1761405897590,0.001,3931.1,3931.0,6.6506496]
[1761405900303,0.4399,3931.1,3931.0,6.6506496]
[1761405901433,0.001,3931.1,3931.0,6.6506496]
[1761405904728,0.4399,3931.1,3931.0,6.6506496]
[1761405905397,0.001,3931.1,3931.0,6.6506496]
[1761405909365,0.001,3931.1,3931.0,8.35939451]
[1761405910064,0.001,3931.1,3931.0,8.07699451]
[1761405919159,0.4381,3931.1,3931.0,8.07699451]
[1761405920638,0.001,3931.1,3931.0,8.07699451]
[1761405932012,0.4381,3931.1,3931.0,0.03]
[1761405932158,0.4381,3931.1,3931.0,3.216]
[1761405950245,0.001,3931.1,3931.0,3.216]
[1761405950547,0.4357,3931.1,3931.0,3.216]
[1761405952056,0.001,3931.1,3931.0,5.88708196]
[1761405952260,0.4357,3931.1,3931.0,5.88708196]
[1761405953434,0.001,3931.1,3931.0,5.88708196]
[1761405955534,0.001,3931.1,3931.0,6.73019004]
[1761405962960,0.001,3931.1,3931.0,4.18630808]
[1761405963137,0.001,3931.1,3931.0,5.88708196]
[1761405963338,0.001,3931.1,3931.0,6.39396196]
[1761405963667,0.001,3931.1,3931.0,6.67636196]
[1761405966865,0.001,3931.1,3931.0,6.90526196]
[1761405967876,0.001,3931.1,3931.0,6.62286196]
[1761405968046,0.001,3931.1,3931.0,7.53954768]
[1761405969686,0.001,3931.1,3931.0,7.82194768]
[1761405976003,0.001,3933.2,3931.8,2.54336436]
[1761405976205,0.001,3933.2,3932.8,3.04959765]
[1761405976206,0.02,3932.9,3932.8,3.04959765]
[1761405976354,0.02,3932.9,3932.8,10.39601154]
[1761405976552,0.02,3932.9,3932.8,12.38448932]
[1761405976985,0.02,3932.9,3932.8,7.59323977]
[1761405977186,0.02,3932.9,3932.8,10.13595742]
[1761405977376,0.02,3932.9,3932.8,10.23768591]
[1761405978403,0.02,3932.9,3932.8,10.52008591]
[1761405979190,0.02,3932.9,3932.8,10.90700206]
[1761405979392,0.02,3932.9,3932.8,10.62460206]
[1761405979602,0.02,3932.9,3932.8,10.90700206]
[1761405980001,0.02,3932.9,3932.8,10.62460206]
[1761405981572,0.02,3932.9,3932.8,7.69496826]
[1761405982268,0.02,3932.9,3932.8,10.23768591]
[1761405983775,0.021,3932.9,3932.8,10.23768591]
[1761405986315,0.021,3932.9,3932.8,10.52008591]
[1761405988820,0.021,3932.9,3932.8,10.23768591]
[1761405990810,0.021,3932.9,3932.8,10.62460206]
[1761405991210,0.021,3932.9,3932.8,10.90700206]
[1761405992136,0.021,3932.9,3932.8,10.62460206]
[1761405994700,0.021,3932.9,3932.8,11.32061482]
[1761405995334,0.021,3932.9,3932.8,11.03821482]
[1761405995842,0.021,3932.9,3932.8,11.04121482]
[1761405996043,0.021,3932.9,3932.8,11.32361482]
[1761406003249,0.021,3932.9,3932.8,11.22188633]
[1761406003929,0.021,3932.9,3932.8,10.93948633]
[1761406004628,0.021,3932.9,3932.8,11.06668633]
[1761406009025,0.021,3932.9,3932.8,13.16633178]
[1761406009439,0.021,3932.9,3932.8,11.34908633]
[1761406010065,0.021,3932.9,3932.8,13.16633178]
[1761406011859,0.021,3932.9,3932.8,12.88393178]
[1761406012066,0.021,3932.9,3932.8,13.16633178]
[1761406012975,0.021,3932.9,3932.8,12.88393178]
[1761406013660,0.021,3932.9,3932.8,13.16633178]
[1761406013975,0.021,3932.9,3932.8,12.88393178]
[1761406015167,0.021,3932.9,3932.8,13.16633178]
[1761406015959,0.021,3932.9,3932.8,12.88393178]
[1761406020682,0.021,3932.9,3932.8,12.34311902]
[1761406023614,0.021,3932.9,3932.8,12.21591902]
[1761406023770,0.021,3932.9,3932.8,10.93948633]
[1761406024461,0.021,3932.9,3932.8,11.04119594]
[1761406026397,0.021,3932.9,3932.8,10.93948633]
[1761406028500,0.6776,3932.9,3932.8,6.8825876]
[1761406028801,0.6776,3932.9,3932.8,7.29091765]
[1761406029496,0.6776,3932.9,3932.8,7.79779765]
[1761406029911,0.6776,3932.9,3932.8,5.25508]
[1761406031295,0.6776,3932.9,3932.8,7.79779765]
[1761406032325,0.6776,3932.9,3932.8,5.25508]
[1761406033394,0.6776,3932.9,3932.8,7.79779765]
[1761406033586,0.6776,3932.9,3932.8,7.92499765]
[1761406035626,0.6776,3932.9,3932.8,5.38228]
[1761406035822,0.6776,3932.9,3932.8,7.92499765]
[1761406046800,0.4502,3932.9,3932.8,7.92499765]
[1761406047128,0.021,3932.9,3932.8,7.92499765]
[1761406048635,0.021,3932.9,3932.8,8.3119138]
[1761406051331,0.4502,3932.9,3932.8,5.76919615]
[1761406051927,0.4502,3932.9,3932.8,8.3119138]
[1761406054620,0.021,3932.9,3932.8,8.3119138]
[1761406055530,0.021,3932.9,3932.8,6.85467128]
[1761406056041,0.021,3932.9,3932.8,9.39738893]
[1761406056247,0.6776,3932.9,3932.8,9.01047278]
[1761406057928,0.4502,3932.9,3932.8,9.01047278]
[1761406058744,0.021,3932.9,3932.8,9.01047278]
[1761406059332,0.021,3932.9,3932.8,9.39738893]
[1761406071443,0.4774,3932.9,3932.8,9.39738893]
[1761406071962,0.021,3932.9,3932.8,9.39738893]
[1761406072271,0.021,3932.9,3932.8,6.85467128]
[1761406072459,0.6919,3932.9,3932.8,5.25508]
[1761406078394,0.6919,3932.9,3932.8,7.79779765]
[1761406079896,0.6919,3932.9,3932.8,5.25508]
[1761406081772,0.6919,3932.9,3932.8,7.79779765]
[1761406082398,0.6919,3932.9,3932.8,7.92499765]
[1761406083505,0.6919,3932.9,3932.8,5.38228]
[1761406084400,0.6919,3932.9,3932.8,4.8754]
[1761406086373,0.6919,3932.9,3932.8,7.41811765]
[1761406089320,0.6919,3932.9,3932.8,3.3202]
[1761406096607,0.6919,3932.9,3932.8,5.86291765]
[1761406097021,0.6919,3932.9,3932.8,3.3202]
[1761406097396,0.6919,3932.9,3932.8,5.86291765]
[1761406097728,0.6919,3932.9,3932.8,3.3202]
[1761406098318,0.6919,3932.9,3932.8,5.86291765]
[1761406100027,0.6919,3932.9,3932.8,3.3202]
[1761406104731,0.021,3932.9,3932.8,3.3202]
[1761406105098,0.021,3932.9,3932.8,3.70711615]
[1761406105605,0.4826,3932.9,3932.8,3.70711615]
[1761406105942,0.4826,3932.9,3932.8,6.2498338]
[1761406107919,0.021,3932.9,3932.8,6.2498338]
[1761406108322,0.4826,3932.9,3932.8,6.2498338]
[1761406109439,0.021,3932.9,3932.8,6.2498338]
[1761406110004,0.021,3932.9,3932.8,3.70711615]
[1761406110814,0.021,3932.9,3932.8,6.2498338]
[1761406111021,0.021,3932.9,3932.8,3.70711615]
[1761406111861,0.021,3932.9,3932.8,6.2498338]
[1761406112550,0.021,3932.9,3932.8,3.70711615]
[1761406112748,0.021,3932.9,3932.8,6.2498338]
[1761406113356,0.021,3932.9,3932.8,3.70711615]
[1761406113654,0.021,3932.9,3932.8,6.2498338]
[1761406114457,0.021,3932.9,3932.8,7.12909897]
[1761406121270,0.021,3932.9,3932.8,9.19117897]
[1761406123870,0.021,3932.9,3932.8,9.29290539]
[1761406133601,0.021,3932.9,3932.8,6.75018774]
[1761406136015,0.021,3932.9,3932.8,9.29290539]
[1761406141818,0.021,3932.9,3932.8,6.75018774]
[1761406142120,0.021,3932.9,3932.8,9.29290539]
[1761406144023,0.021,3932.9,3932.8,6.75018774]
[1761406144623,0.021,3932.9,3932.8,9.29290539]
[1761406157815,0.2364,3932.9,3932.8,5.87092257]
[1761406158151,0.682,3932.9,3932.8,5.48400642]
[1761406161154,0.682,3932.9,3932.8,4.97712642]
[1761406169490,0.682,3932.9,3932.8,7.51984407]
[1761406169975,0.682,3932.9,3932.8,4.97712642]
[1761406170799,0.682,3932.9,3932.8,3.42192642]
[1761406174879,0.682,3932.9,3932.8,3.3202]
[1761406197631,0.2364,3932.9,3932.8,3.3202]
[1761406197830,0.6928,3932.9,3932.8,3.3202]
[1761406201951,0.021,3932.9,3932.8,3.3202]
[1761406203882,0.4704,3932.9,3932.8,3.3202]
[1761406206767,0.4704,3932.9,3932.8,3.7906]
[1761406207798,0.4704,3932.9,3932.8,6.33331765]
[1761406208102,0.021,3932.9,3932.8,6.33331765]
[1761406209889,0.021,3932.9,3932.8,3.7906]
[1761406210883,0.4702,3932.9,3932.8,3.7906]
[1761406216247,0.4702,3932.9,3930.1,0.02]
[1761406216248,2.54283578,3932.7,3931.9,0.002]
[1761406216443,1.1718,3932.9,3932.0,3.187]
[1761406216741,2.54281639,3932.7,3932.0,3.187]
[1761406216939,2.54286694,3932.6,3932.0,3.187]
[1761406217413,0.4492,3932.5,3932.0,3.187]
[1761406218001,2.99211794,3932.5,3932.0,3.187]
[1761406218332,0.37554369,3932.4,3932.0,3.187]
[1761406218634,0.82474369,3932.4,3932.0,3.187]
[1761406219305,0.4492,3932.3,3932.0,3.187]
[1761406225335,1.21253644,3932.3,3932.0,3.187]
[1761406225736,0.4492,3932.2,3932.0,3.187]
[1761406226118,0.5764,3932.2,3932.0,3.187]
[1761406226531,0.4492,3932.1,3932.0,3.187]
[1761406253292,0.4502,3932.1,3932.0,3.187]
[1761406261134,0.001,3932.1,3932.0,3.187]
[1761406261299,0.4427,3932.1,3932.0,3.187]
[1761406265939,0.4427,3932.1,3931.9,0.002]
[1761406266156,0.001,3932.1,3932.0,3.188]
[1761406267641,0.4427,3932.1,3932.0,3.188]
[1761406269153,0.4427,3932.1,3931.9,0.002]
[1761406269315,0.4427,3932.1,3932.0,3.188]
[1761406270118,0.79613768,3932.1,3932.0,3.188]
[1761406272732,2.98587031,3932.1,3932.0,3.188]
[1761406272945,3.53310604,3932.1,3932.0,3.188]
[1761406273735,0.98993573,3932.1,3932.0,3.188]
[1761406274542,0.98993573,3932.1,3931.9,0.002]
[1761406274748,0.474,3932.0,3931.9,0.002]
[1761406274948,0.83063534,3932.0,3931.9,0.002]
[1761406275964,0.95783534,3932.0,3931.9,0.002]
[1761406279804,1.50507107,3932.0,3931.9,0.002]
[1761406280982,4.04830606,3932.0,3931.9,0.002]
[1761406281406,3.50107033,3932.0,3931.9,0.002]
[1761406282616,4.04765522,3932.0,3931.9,0.002]
[1761406283319,3.50107033,3932.0,3931.9,0.002]
[1761406285520,0.95783534,3932.0,3931.9,0.002]
[1761406286021,3.50107033,3932.0,3931.9,0.002]
[1761406286518,4.04772777,3932.0,3931.9,0.002]
[1761406287117,4.04872777,3932.0,3931.9,0.002]
[1761406290536,0.48483534,3932.0,3931.9,0.002]
[1761406290714,0.001,3932.0,3931.9,3.05144576]
[1761406290909,0.001,3932.0,3931.9,0.79054609]
[1761406291136,0.001,3932.0,3931.9,3.33384576]
[1761406291898,0.001,3932.0,3931.9,2.82769967]
[1761406294937,0.001,3932.0,3931.9,0.2844]
[1761406295233,0.001,3932.0,3931.9,2.82769967]
[1761406298313,0.001,3932.0,3931.9,3.69378731]
[1761406300218,0.001,3932.0,3931.9,0.86808764]
[1761406300716,0.001,3932.0,3931.9,0.99528764]
[1761406300917,0.001,3932.0,3931.9,0.1292]
[1761406304549,0.001,3932.0,3931.9,0.002]
[1761406315472,3.00833499,3932.0,3931.9,0.002]
[1761406315776,3.00833499,3932.0,3931.5,1.271]
[1761406315777,2.54349374,3931.6,3931.5,1.271]
[1761406315963,3.05217974,3931.6,3931.5,1.271]
[1761406316160,3.51627974,3931.6,3931.5,1.271]
[1761406325502,3.64347974,3931.6,3931.5,1.271]
[1761406328647,3.64347974,3931.6,3931.5,0.002]
[1761406328916,5.74398074,3931.6,3931.5,0.002]
[1761406330009,5.79398138,3931.6,3931.5,0.002]
[1761406343719,5.79398138,3931.6,3930.1,0.02]
[1761406343720,2.54439977,3930.2,3930.1,0.02]
[1761406343875,2.54439977,3930.2,3929.1,0.02]
[1761406343876,0.50688,3930.1,3929.1,0.02]
[1761406344196,0.50688,3930.1,3929.1,0.1181]
[1761406344197,0.80000419,3930.1,3929.1,0.1181]
[1761406344479,1.5552,3930.5,3929.1,1.6821]
[1761406344675,0.54564088,3930.4,3929.8,0.3124]
[1761406344865,1.775,3930.6,3929.1,1.6821]
[1761406344866,0.54568842,3930.5,3929.1,1.9945]
[1761406345070,4.09947268,3930.4,3929.4,0.76380287]
[1761406345259,0.54587087,3930.3,3929.2,0.3124]
[1761406345584,0.54587087,3930.3,3929.4,0.3124]
[1761406345585,1.00127087,3930.3,3929.4,0.3124]
[1761406345740,1.00127087,3930.3,3929.1,2.44596121]
[1761406345741,0.54587087,3930.3,3929.3,2.54493282]
[1761406345945,0.2198,3930.6,3929.3,2.54493282]
[1761406345946,0.4554,3930.5,3929.6,0.3124]
[1761406346147,1.50140007,3930.5,3929.6,0.3124]
[1761406346581,2.0106,3930.4,3929.6,0.3124]
[1761406346791,0.54587087,3930.3,3929.6,0.3124]
[1761406346952,1.00127087,3930.3,3929.6,0.3124]
[1761406347152,0.40456721,3930.2,3929.6,0.3124]
[1761406348001,0.4554,3930.3,3929.6,2.85718722]
[1761406348163,0.4554,3930.3,3929.6,0.3124]
[1761406348602,1.00088562,3930.5,3929.6,0.3124]
[1761406349165,0.4554,3930.4,3929.6,0.3124]
[1761406352170,2.0106,3930.4,3929.6,0.3124]
[1761406352370,0.54548562,3930.3,3929.6,0.3124]
[1761406352580,0.51002951,3930.2,3929.6,0.3124]
[1761406353306,0.96542951,3930.2,3929.6,0.3124]
[1761406353696,0.1272,3930.1,3929.6,0.3124]
[1761406354599,0.1272,3930.1,3929.4,0.3124]
[1761406356211,0.5826,3930.1,3929.4,0.3124]
[1761406357405,0.5826,3930.1,3930.0,0.00455]
[1761406357611,1.10181015,3930.1,3930.0,0.00455]
[1761406357984,0.5826,3930.1,3930.0,0.00455]
[1761406362502,0.1272,3930.1,3930.0,0.00455]
[1761406372156,0.67260299,3930.1,3930.0,0.00455]
[1761406374369,0.67360299,3930.1,3930.0,0.31695]
[1761406374920,0.67360299,3930.1,3930.0,0.00455]
[1761406380065,0.67360299,3930.1,3930.0,0.31695]
[1761406380969,0.67360299,3930.1,3930.0,0.00455]
[1761406381171,1.28429855,3930.1,3930.0,0.00455]
[1761406381637,0.83749855,3930.1,3930.0,0.00455]
[1761406390371,1.29549855,3930.1,3930.0,0.00455]
[1761406391290,0.96469855,3930.1,3930.0,0.00455]
[1761406391458,1.42269855,3930.1,3930.0,0.00455]
[1761406396369,0.96469855,3930.1,3930.0,0.00455]
[1761406396775,1.42269855,3930.1,3930.0,0.00455]
[1761406400503,0.96469855,3930.1,3930.0,0.00455]